fUSD/lending_fUSD_20240718
["ID","MTS","AMOUNT","RATE_DAILY","PERIOD"]
[332531479,1721288096653,-864.51,0.00027123,2]
[332531480,1721288096664,-874.63,0.00027123,2]
[332531481,1721288096677,-572.13,0.00027123,2]
[332531482,1721288096686,-768.44,0.00027123,2]
[332531483,1721288096695,-919.94,0.00027123,2]
[332531484,1721288096704,-500.0,0.00027123,2]
[332531485,1721288096714,-567.01,0.00027123,2]
[332531486,1721288096723,-750.97,0.00027123,2]
[332531487,1721288096732,-664.81,0.00027123,2]
[332531488,1721288096741,-1439.37,0.00027123,2]
[332531489,1721288096753,-820.24,0.00027123,2]
[332531490,1721288096762,-500.0,0.00027123,2]
[332531491,1721288096771,-659.88,0.00027123,2]
[332531492,1721288096780,-675.36,0.00027123,2]
[332531493,1721288096790,-1239.37,0.00027123,2]
[332531494,1721288096799,-587.43,0.00027123,2]
[332531495,1721288096808,-1037.75,0.00027123,2]
[332531496,1721288096818,-1312.95,0.00027123,2]
[332531497,1721288096827,-528.71126295,0.00027123,2]
[332531498,1721288096836,-759.36,0.00027123,2]
[332531499,1721288096847,-589.69,0.00027123,2]
[332531500,1721288096857,-589.59,0.00027123,2]
[332531501,1721288096867,-500.0,0.00027123,2]
[332531502,1721288096877,-1508.18,0.00027123,2]
[332531503,1721288096886,-519.36,0.00027123,2]
[332531504,1721288096895,-465.48,0.00027123,2]
[332531505,1721288096905,-500.0,0.00027123,2]
[332531506,1721288096914,-1570.3,0.00027123,2]
[332531507,1721288096924,-684.5,0.00027123,2]
[332531508,1721288096934,-1825.46,0.00027123,2]
[332531509,1721288096944,-778.25,0.00027123,2]
[332531510,1721288096953,-647.56,0.00027123,2]
[332531511,1721288096963,-1501.12,0.00027123,2]
[332531512,1721288096973,-649.76,0.00027123,2]
[332531513,1721288096983,-698.16,0.00027123,2]
[332531514,1721288096992,-500.0,0.00027123,2]
[332531515,1721288097003,-838.21,0.00027123,2]
[332531516,1721288097014,-832.49,0.00027123,2]
[332531517,1721288097024,-635.85,0.00027123,2]
[332531518,1721288097033,-1002.59,0.00027123,2]
[332531519,1721288097043,-1264.99,0.00027123,2]
[332531520,1721288097053,-558.12,0.00027123,2]
[332531521,1721288097063,-667.65,0.00027123,2]
[332531522,1721288097073,-828.72,0.00027123,2]
[332531523,1721288097082,-825.13,0.00027123,2]
[332531524,1721288097092,-935.3,0.00027123,2]
[332531525,1721288097102,-486.06427859,0.00027123,2]
[332531526,1721288097111,-572.09,0.00027123,2]
[332531527,1721288097121,-801.73,0.00027123,2]
[332531528,1721288097130,-829.06,0.00027123,2]
[332531529,1721288097140,-533.21,0.00027123,2]
[332531530,1721288097149,-1500.37,0.00027123,2]
[332531531,1721288097159,-993.33,0.00027123,2]
[332531532,1721288097168,-614.68,0.00027123,2]
[332531533,1721288097178,-839.63,0.00027123,2]
[332531534,1721288097187,-1099.16,0.00027123,2]
[332531535,1721288097196,-2190.92,0.00027123,2]
[332531536,1721288097206,-769.89,0.00027123,2]
[332531537,1721288097216,-1387.79,0.00027123,2]
[332531538,1721288097225,-860.39,0.00027123,2]
[332531539,1721288097234,-916.75,0.00027123,2]
[332531540,1721288097244,-500.0,0.00027123,2]
[332531541,1721288097255,-621.09,0.00027123,2]
[332531542,1721288097265,-500.0,0.00027123,2]
[332531543,1721288097274,-2607.0,0.00027123,2]
[332531544,1721288097284,-934.95,0.00027123,2]
[332531545,1721288097293,-1185.83,0.00027123,2]
[332531546,1721288097302,-634.32,0.00027123,2]
[332531547,1721288097311,-714.68,0.00027123,2]
[332531548,1721288097321,-706.1,0.00027123,2]
[332531549,1721288097330,-992.23,0.00027123,2]
[332531550,1721288097339,-719.06,0.00027123,2]
[332531551,1721288097348,-275.58031462,0.00027123,2]
[332531552,1721288097357,-879.71,0.00027123,2]
[332531553,1721288097366,-962.74,0.00027123,2]
[332531554,1721288097376,-4194.17,0.00027123,2]
[332531555,1721288097385,-500.0,0.00027123,2]
[332531556,1721288097394,-500.0,0.00027123,2]
[332531557,1721288097403,-796.16,0.00027123,2]
[332531558,1721288097413,-607.98,0.00027123,2]
[332531559,1721288097422,-845.59,0.00027123,2]
[332531560,1721288097431,-1343.67,0.00027123,2]
[332531561,1721288097441,-884.87,0.00027123,2]
[332531562,1721288097450,-563.78,0.00027123,2]
[332531563,1721288097459,-664.21,0.00027123,2]
[332531564,1721288097468,-619.48,0.00027123,2]
[332531565,1721288097478,-1023.41,0.00027123,2]
[332531566,1721288097487,-4286.57,0.00027123,2]
[332531567,1721288097497,-759.2,0.00027123,2]
[332531568,1721288097507,-500.0,0.00027123,2]
[332531569,1721288097515,-664.93,0.00027123,2]
[332531570,1721288097525,-1303.0,0.00027123,2]
[332531571,1721288097535,-799.99,0.00027123,2]
[332531572,1721288097544,-779.15,0.00027123,2]
[332531573,1721288097554,-705.02,0.00027123,2]
[332531574,1721288097563,-699.13,0.00027123,2]
[332531575,1721288097573,-712.43,0.00027123,2]
[332531576,1721288097582,-615.07,0.00027123,2]
[332531577,1721288097592,-640.55,0.00027123,2]
[332531578,1721288097601,-840.9,0.00027123,2]
[332531579,1721288097610,-842.93,0.00027123,2]
[332531580,1721288097619,-1213.95,0.00027123,2]
[332531581,1721288097628,-500.0,0.00027123,2]
[332531582,1721288097637,-515.65,0.00027123,2]
[332531583,1721288097647,-964.94,0.00027123,2]
[332531584,1721288097656,-592.68,0.00027123,2]
[332531585,1721288097667,-6375.98,0.00027123,2]
[332531586,1721288097678,-1379.21,0.00027123,2]
[332531587,1721288097687,-1037.41,0.00027123,2]
[332531588,1721288097696,-559.08,0.00027123,2]
[332531589,1721288097706,-1444.47,0.00027123,2]
[332531590,1721288097715,-1777.51,0.00027123,2]
[332531591,1721288097725,-1147.47,0.00027123,2]
[332531592,1721288097735,-1083.93,0.00027123,2]
[332531593,1721288097745,-815.97,0.00027123,2]
[332531594,1721288097757,-1394.22,0.00027123,2]
[332531595,1721288097766,-1149.47,0.00027123,2]
[332531596,1721288097778,-588.95,0.00027123,2]
[332531597,1721288097787,-7884.99,0.00027123,2]
[332531598,1721288097797,-1142.52,0.00027123,2]
[332531599,1721288097805,-2350.96,0.00027123,2]
[332531600,1721288097815,-751.24,0.00027123,2]
[332531601,1721288097824,-518.01,0.00027123,2]
[332531602,1721288097833,-1047.43,0.00027123,2]
[332531603,1721288097843,-9262.82,0.00027123,2]
[332531604,1721288097852,-576.17,0.00027123,2]
[332531605,1721288097862,-817.71,0.00027123,2]
[332531606,1721288097871,-567.84,0.00027123,2]
[332531607,1721288097881,-500.0,0.00027123,2]
[332531608,1721288097890,-943.1,0.00027123,2]
[332531609,1721288097899,-714.81,0.00027123,2]
[332531610,1721288097908,-559.22,0.00027123,2]
[332531611,1721288097918,-595.86,0.00027123,2]
[332531612,1721288097927,-671.4,0.00027123,2]
[332531613,1721288097936,-1700.34,0.00027123,2]
[332531614,1721288097946,-897.02,0.00027123,2]
[332531615,1721288097955,-709.03,0.00027123,2]
[332531616,1721288097965,-812.96,0.00027123,2]
[332531617,1721288097974,-763.5,0.00027123,2]
[332531618,1721288097982,-919.85,0.00027123,2]
[332531619,1721288097991,-1583.56,0.00027123,2]
[332531620,1721288098002,-915.85,0.00027123,2]
[332531621,1721288098011,-634.02,0.00027123,2]
[332531622,1721288098020,-1450.66,0.00027123,2]
[332531623,1721288098029,-948.76,0.00027123,2]
[332531624,1721288098038,-1051.57,0.00027123,2]
[332531625,1721288098047,-2003.88,0.00027123,2]
[332531626,1721288098056,-601.06,0.00027123,2]
[332531627,1721288098065,-796.81,0.00027123,2]
[332531628,1721288098074,-1013.83,0.00027123,2]
[332531629,1721288098084,-515.65,0.00027123,2]
[332531630,1721288098093,-544.27,0.00027123,2]
[332531631,1721288098102,-708.78,0.00027123,2]
[332531632,1721288098111,-503.35,0.00027123,2]
[332531633,1721288098120,-1299.19,0.00027123,2]
[332531634,1721288098130,-1547.31,0.00027123,2]
[332531635,1721288098139,-612.66,0.00027123,2]
[332531636,1721288098148,-957.7,0.00027123,2]
[332531637,1721288098159,-999.04,0.00027123,2]
[332531638,1721288098169,-677.55,0.00027123,2]
[332531639,1721288098178,-549.83,0.00027123,2]
[332531640,1721288098188,-798.47,0.00027123,2]
[332531641,1721288098198,-695.01,0.00027123,2]
[332531642,1721288098208,-518.09,0.00027123,2]
[332531643,1721288098219,-1656.81,0.00027123,2]
[332531644,1721288098230,-813.28,0.00027123,2]
[332531645,1721288098239,-945.22,0.00027123,2]
[332531646,1721288098250,-947.17,0.00027123,2]
[332531647,1721288098260,-539.79,0.00027123,2]
[332531648,1721288098270,-706.37,0.00027123,2]
[332531649,1721288098280,-1135.75,0.00027123,2]
[332531650,1721288098290,-673.53,0.00027123,2]
[332531651,1721288098300,-3128.96,0.00027123,2]
[332531652,1721288098310,-557.31,0.00027123,2]
[332531653,1721288098319,-669.1,0.00027123,2]
[332531654,1721288098329,-3223.32,0.00027123,2]
[332531655,1721288098338,-842.49,0.00027123,2]
[332531656,1721288098347,-836.84,0.00027123,2]
[332531657,1721288098357,-542.57,0.00027123,2]
[332531658,1721288098368,-884.02,0.00027123,2]
[332531659,1721288098377,-1416.46,0.00027123,2]
[332531660,1721288098386,-525.77,0.00027123,2]
[332531661,1721288098395,-500.0,0.00027123,2]
[332531662,1721288098405,-808.77,0.00027123,2]
[332531663,1721288098415,-813.18,0.00027123,2]
[332531664,1721288098425,-2204.96,0.00027123,2]
[332531665,1721288098434,-888.04,0.00027123,2]
[332531666,1721288098443,-617.34,0.00027123,2]
[332531667,1721288098452,-503.15,0.00027123,2]
[332531668,1721288098461,-500.0,0.00027123,2]
[332531669,1721288098470,-773.79,0.00027123,2]
[332531670,1721288098482,-550.97,0.00027123,2]
[332531671,1721288098494,-556.49,0.00027123,2]
[332531672,1721288098504,-1258.11,0.00027123,2]
[332531673,1721288098513,-1541.61,0.00027123,2]
[332531674,1721288098522,-923.36,0.00027123,2]
[332531675,1721288098531,-1497.76,0.00027123,2]
[332531676,1721288098539,-698.16,0.00027123,2]
[332531677,1721288098550,-1777.63,0.00027123,2]
[332531678,1721288098559,-1751.66,0.00027123,2]
[332531679,1721288098568,-748.62,0.00027123,2]
[332531680,1721288098578,-1440.65,0.00027123,2]
[332531681,1721288098589,-500.0,0.00027123,2]
[332531682,1721288098600,-1459.37,0.00027123,2]
[332531683,1721288098610,-834.65,0.00027123,2]
[332531684,1721288098620,-574.9,0.00027123,2]
[332531685,1721288098630,-967.34,0.00027123,2]
[332531686,1721288098640,-945.46,0.00027123,2]
[332531687,1721288098650,-600.34,0.00027123,2]
[332531688,1721288098660,-6789.46,0.00027123,2]
[332531689,1721288098671,-500.0,0.00027123,2]
[332531690,1721288098682,-702.74,0.00027123,2]
[332531691,1721288098691,-1649.03,0.00027123,2]
[332531692,1721288098701,-846.83,0.00027123,2]
[332531693,1721288098710,-1351.16,0.00027123,2]
[332531694,1721288098719,-3838.48,0.00027123,2]
[332531695,1721288098729,-727.83,0.00027123,2]
[332531696,1721288098741,-1099.8,0.00027123,2]
[332531697,1721288098750,-592.88,0.00027123,2]
[332531698,1721288098759,-1314.69,0.00027123,2]
[332531699,1721288098768,-660.25,0.00027123,2]
[332531700,1721288098777,-1225.2,0.00027123,2]
[332531701,1721288098787,-690.8,0.00027123,2]
[332531702,1721288098798,-758.27,0.00027123,2]
[332531703,1721288098808,-815.9,0.00027123,2]
[332531704,1721288098818,-1445.6,0.00027123,2]
[332531705,1721288098827,-1211.24,0.00027123,2]
[332531706,1721288098839,-764.9,0.00027123,2]
[332531707,1721288098850,-1017.79,0.00027123,2]
[332531708,1721288098861,-819.77,0.00027123,2]
[332531709,1721288098871,-843.65,0.00027123,2]
[332531710,1721288098880,-508.09,0.00027123,2]
[332531711,1721288098890,-1121.8,0.00027123,2]
[332531712,1721288098899,-4510.49,0.00027123,2]
[332531713,1721288098909,-548.62,0.00027123,2]
[332531714,1721288098919,-732.51,0.00027123,2]
[332531715,1721288098929,-500.0,0.00027123,2]
[332531716,1721288098939,-727.51,0.00027123,2]
[332531717,1721288098948,-699.69,0.00027123,2]
[332531718,1721288098959,-780.84,0.00027123,2]
[332531719,1721288098968,-615.98,0.00027123,2]
[332531720,1721288098978,-985.19,0.00027123,2]
[332531721,1721288098987,-2219.16,0.00027123,2]
[332531722,1721288098996,-661.47,0.00027123,2]
[332531723,1721288099007,-2008.64,0.00027123,2]
[332531724,1721288099016,-707.34,0.00027123,2]
[332531725,1721288099025,-776.84,0.00027123,2]
[332531726,1721288099033,-2197.33,0.00027123,2]
[332531727,1721288099042,-813.45,0.00027123,2]
[332531728,1721288099053,-1222.6,0.00027123,2]
[332531729,1721288099062,-685.95,0.00027123,2]
[332531730,1721288099071,-6067.08,0.00027123,2]
[332531731,1721288099081,-885.84,0.00027123,2]
[332531732,1721288099090,-498.13250186,0.00027123,2]
[332531733,1721288099098,-589.04,0.00027123,2]
[332531734,1721288099108,-703.44,0.00027123,2]
[332531735,1721288099117,-919.77,0.00027123,2]
[332531736,1721288099126,-699.95,0.00027123,2]
[332531737,1721288099135,-2956.08,0.00027123,2]
[332531738,1721288099144,-500.0,0.00027123,2]
[332531739,1721288099153,-758.73,0.00027123,2]
[332531740,1721288099163,-1023.99,0.00027123,2]
[332531741,1721288099173,-893.45,0.00027123,2]
[332531742,1721288099182,-500.0,0.00027123,2]
[332531743,1721288099191,-1159.85,0.00027123,2]
[332531744,1721288099201,-799.42,0.00027123,2]
[332531745,1721288099210,-3466.01,0.00027123,2]
[332531746,1721288099219,-2000.0,0.000272,2]
[332531747,1721288099228,-2000.0,0.000272,2]
[332531748,1721288099237,-2000.0,0.000272,2]
[332531749,1721288099247,-979.61,0.00027251,2]
[332531750,1721288099257,-954.82,0.00027376,15]
[332531751,1721288099266,-954.82,0.00027376,15]
[332531752,1721288099275,-288.81831395,0.0002739,15]
[332531753,1721288099284,-587.78810258,0.0002739,20]
[332531754,1721288099293,-293.89405129,0.0002739,25]
[332531755,1721288099302,-293.89405129,0.0002739,30]
[332531756,1721288099311,-1548.92,0.00027397,2]
[332531757,1721288099320,-526.75214462,0.00027397,2]
[332531758,1721288099330,-903.45,0.00027397,2]
[332531759,1721288099340,-873.73,0.00027397,2]
[332531760,1721288099349,-1146.78,0.00027397,2]
[332531761,1721288099358,-755.65,0.00027397,2]
[332531762,1721288099367,-1117.53,0.00027397,2]
[332531763,1721288099376,-1014.34,0.00027397,2]
[332531764,1721288099386,-500.0,0.00027397,2]
[332531765,1721288099395,-926.9,0.00027397,2]
[332531766,1721288099405,-559.52,0.00027397,2]
[332531767,1721288099414,-1202.57,0.00027397,2]
[332531768,1721288099423,-188.81969198,0.00027397,2]
[332531769,1721288099432,-686.6,0.00027397,2]
[332531770,1721288099442,-698.02,0.00027397,2]
[332531771,1721288099451,-500.0,0.00027397,2]
[332531772,1721288099460,-568.02,0.00027397,2]
[332531773,1721288099469,-170.62023287,0.00027397,2]
[332531774,1721288099480,-506.5,0.00027397,2]
[332531775,1721288099490,-579.89,0.00027397,2]
[332531776,1721288099499,-888.04,0.00027397,2]
[332531777,1721288099509,-877.77,0.00027397,2]
[332531778,1721288099518,-500.0,0.00027397,2]
[332531779,1721288099528,-689.95,0.00027397,2]
[332531780,1721288099537,-887.13,0.00027397,2]
[332531781,1721288099547,-512.75,0.00027397,2]
[332531782,1721288099557,-500.0,0.00027397,2]
[332531783,1721288099567,-918.48,0.00027397,2]
[332531784,1721288099577,-1130.16,0.00027397,2]
[332531785,1721288099586,-500.0,0.00027397,2]
[332531786,1721288099596,-500.0,0.00027397,2]
[332531787,1721288099605,-1018.39,0.00027397,2]
[332531788,1721288099615,-500.0,0.00027397,2]
[332531789,1721288099625,-582.9,0.00027397,2]
[332531790,1721288099635,-629.0,0.00027397,2]
[332531791,1721288099645,-682.95,0.00027397,2]
[332531792,1721288099654,-1036.97,0.00027397,2]
[332531793,1721288099665,-688.35,0.00027397,2]
[332531794,1721288099676,-851.26,0.00027397,2]
[332531795,1721288099686,-467.55891273,0.00027397,2]
[332531796,1721288099695,-1046.3,0.00027397,2]
[332531797,1721288099705,-232.09413334,0.00027397,2]
[332531798,1721288099714,-988.22,0.00027397,2]
[332531799,1721288099724,-500.0,0.00027397,2]
[332531800,1721288099733,-864.94,0.00027397,2]
[332531801,1721288099745,-704.02,0.00027397,2]
[332531802,1721288099756,-791.51,0.00027397,2]
[332531803,1721288099766,-637.96,0.00027397,2]
[332531804,1721288099775,-645.57,0.00027397,2]
[332531805,1721288099785,-632.83,0.00027397,2]
[332531806,1721288099796,-654.28,0.00027397,2]
[332531807,1721288099805,-616.18,0.00027397,2]
[332531808,1721288099817,-673.07,0.00027397,2]
[332531809,1721288099826,-530.94,0.00027397,2]
[332531810,1721288099837,-527.98,0.00027397,2]
[332531811,1721288099846,-547.08,0.00027397,2]
[332531812,1721288099857,-559.75,0.00027397,2]
[332531813,1721288099867,-611.76,0.00027397,2]
[332531814,1721288099877,-1173.23,0.00027397,2]
[332531815,1721288099886,-709.13,0.00027397,2]
[332531816,1721288099896,-753.22,0.00027397,2]
[332531817,1721288099906,-571.73,0.00027397,2]
[332531818,1721288099916,-679.34,0.00027397,2]
[332531819,1721288099925,-393.7,0.00027397,2]
[332531820,1721288099935,-771.42,0.00027397,2]
[332531821,1721288099945,-163.8376112,0.00027397,2]
[332531822,1721288099955,-1055.96,0.00027397,2]
[332531823,1721288099966,-500.0,0.00027397,2]
[332531824,1721288099976,-703.28,0.00027397,2]
[332531825,1721288099985,-750.7,0.00027397,2]
[332531826,1721288099995,-756.04,0.00027397,2]
[332531827,1721288100008,-500.0,0.00027397,2]
[332531828,1721288100020,-1168.54,0.00027397,2]
[332531829,1721288100030,-1538.77,0.00027397,2]
[332531830,1721288100041,-1229.0,0.00027397,2]
[332531831,1721288100054,-926.42,0.00027397,2]
[332531832,1721288100065,-1335.62,0.00027397,2]
[332531833,1721288100076,-984.25,0.00027397,2]
[332531834,1721288100087,-1387.55,0.00027397,2]
[332531835,1721288100098,-925.35,0.00027397,2]
[332531836,1721288100109,-542.52,0.00027397,2]
[332531837,1721288100119,-500.0,0.00027397,2]
[332531838,1721288100128,-1699.26,0.00027397,2]
[332531839,1721288100139,-542.08,0.00027397,2]
[332531840,1721288100148,-560.08,0.00027397,2]
[332531841,1721288100158,-500.0,0.00027397,2]
[332531842,1721288100168,-1355.83,0.00027397,2]
[332531843,1721288100178,-505.95,0.00027397,2]
[332531844,1721288100188,-628.74,0.00027397,2]
[332531845,1721288100198,-500.0,0.00027397,2]
[332531846,1721288100207,-538.06,0.00027397,2]
[332531847,1721288100218,-676.4,0.00027397,2]
[332531848,1721288100228,-1065.58,0.00027397,2]
[332531849,1721288100238,-1171.41,0.00027397,2]
[332531850,1721288100248,-1408.6,0.00027397,7]
[332531851,1721288100258,-872.67,0.00027397,2]
[332531852,1721288100268,-1348.92,0.00027397,2]
[332531853,1721288100278,-838.7,0.00027397,2]
[332531854,1721288100287,-503.03,0.00027397,2]
[332531855,1721288100296,-500.0,0.00027397,2]
[332531856,1721288100306,-802.6,0.00027397,2]
[332531857,1721288100315,-780.83,0.00027397,2]
[332531858,1721288100324,-579.37,0.00027397,2]
[332531859,1721288100333,-781.35,0.00027397,2]
[332531860,1721288100342,-724.1,0.00027397,2]
[332531861,1721288100352,-568.82,0.00027397,2]
[332531862,1721288100361,-771.73,0.00027397,2]
[332531863,1721288100371,-1353.92,0.00027397,2]
[332531864,1721288100382,-1387.82,0.00027397,2]
[332531865,1721288100392,-1287.42,0.00027397,2]
[332531866,1721288100403,-553.81,0.00027397,2]
[332531867,1721288100414,-500.0,0.00027397,2]
[332531868,1721288100423,-911.72,0.00027397,2]
[332531869,1721288100432,-972.31,0.00027397,2]
[332531870,1721288100441,-682.98,0.00027397,2]
[332531871,1721288100451,-1109.76,0.00027397,2]
[332531872,1721288100461,-819.38,0.00027397,2]
[332531873,1721288100470,-836.26,0.00027397,2]
[332531874,1721288100482,-544.15,0.00027397,2]
[332531875,1721288100492,-585.39457008,0.00027397,2]
[332531876,1721288100503,-744.75,0.00027397,2]
[332531877,1721288100513,-659.68,0.00027397,2]
[332531878,1721288100523,-1074.46,0.00027397,2]
[332531879,1721288100532,-918.1,0.00027397,2]
[332531880,1721288100542,-637.37,0.00027397,2]
[332531881,1721288100551,-941.47,0.00027397,2]
[332531882,1721288100561,-1715.0,0.00027397,2]
[332531883,1721288100570,-808.27,0.00027397,2]
[332531884,1721288100580,-543.92,0.00027397,2]
[332531885,1721288100589,-500.0,0.00027397,2]
[332531886,1721288100599,-848.98,0.00027397,2]
[332531887,1721288100609,-702.02,0.00027397,2]
[332531888,1721288100618,-833.62,0.00027397,2]
[332531889,1721288100627,-747.03,0.00027397,2]
[332531890,1721288100637,-694.12,0.00027397,2]
[332531891,1721288100647,-1393.96,0.00027397,2]
[332531892,1721288100657,-923.3,0.00027397,2]
[332531893,1721288100671,-864.51,0.00027397,2]
[332531894,1721288100681,-874.63,0.00027397,2]
[332531895,1721288100691,-572.13,0.00027397,2]
[332531896,1721288100700,-768.44,0.00027397,2]
[332531897,1721288100711,-919.94,0.00027397,2]
[332531898,1721288100721,-461.89699754,0.00027397,2]
[332531899,1721288100730,-567.01,0.00027397,2]
[332531900,1721288100740,-750.97,0.00027397,2]
[332531901,1721288100752,-664.81,0.00027397,2]
[332531902,1721288100768,-1439.37,0.00027397,2]
[332531903,1721288100778,-820.24,0.00027397,2]
[332531904,1721288100790,-500.0,0.00027397,2]
[332531905,1721288100800,-659.88,0.00027397,2]
[332531906,1721288100809,-675.36,0.00027397,2]
[332531907,1721288100819,-1239.37,0.00027397,2]
[332531908,1721288100829,-587.43,0.00027397,2]
[332531909,1721288100838,-1037.75,0.00027397,2]
[332531910,1721288100847,-1312.95,0.00027397,2]
[332531911,1721288100857,-759.36,0.00027397,2]
[332531912,1721288100867,-589.69,0.00027397,2]
[332531913,1721288100877,-589.59,0.00027397,2]
[332531914,1721288100887,-500.0,0.00027397,2]
[332531915,1721288100896,-1508.18,0.00027397,2]
[332531916,1721288100905,-519.36,0.00027397,2]
[332531917,1721288100915,-465.48,0.00027397,2]
[332531918,1721288100925,-500.0,0.00027397,2]
[332531919,1721288100935,-1570.3,0.00027397,2]
[332531920,1721288100946,-684.5,0.00027397,2]
[332531921,1721288100957,-1825.46,0.00027397,2]
[332531922,1721288100966,-778.25,0.00027397,2]
[332531923,1721288100977,-647.56,0.00027397,2]
[332531924,1721288100988,-1501.12,0.00027397,2]
[332531925,1721288100998,-649.76,0.00027397,2]
[332531926,1721288101013,-698.16,0.00027397,2]
[332531927,1721288101026,-386.5,0.00027397,2]
[332531928,1721288101037,-838.21,0.00027397,2]
[332531929,1721288101046,-832.49,0.00027397,2]
[332531930,1721288101057,-635.85,0.00027397,2]
[332531931,1721288101067,-1002.59,0.00027397,2]
[332531932,1721288101077,-1264.99,0.00027397,2]
[332531933,1721288101087,-558.12,0.00027397,2]
[332531934,1721288101098,-667.65,0.00027397,2]
[332531935,1721288101108,-828.72,0.00027397,2]
[332531936,1721288101119,-825.13,0.00027397,2]
[332531937,1721288101128,-935.3,0.00027397,2]
[332531938,1721288101139,-572.09,0.00027397,2]
[332531939,1721288101150,-801.73,0.00027397,2]
[332531940,1721288101160,-829.06,0.00027397,2]
[332531941,1721288101170,-533.21,0.00027397,2]
[332531942,1721288101181,-1500.37,0.00027397,2]
[332531943,1721288101191,-993.33,0.00027397,2]
[332531944,1721288101201,-614.68,0.00027397,2]
[332531945,1721288101212,-839.63,0.00027397,2]
[332531946,1721288101222,-1099.16,0.00027397,2]
[332531947,1721288101235,-2190.92,0.00027397,2]
[332531948,1721288101245,-769.89,0.00027397,2]
[332531949,1721288101259,-1387.79,0.00027397,2]
[332531950,1721288101269,-860.39,0.00027397,2]
[332531951,1721288101279,-916.75,0.00027397,2]
[332531952,1721288101290,-500.0,0.00027397,2]
[332531953,1721288101300,-621.09,0.00027397,2]
[332531954,1721288101310,-380.68559393,0.00027397,2]
[332531955,1721288101320,-2607.0,0.00027397,2]
[332531956,1721288101330,-934.95,0.00027397,2]
[332531957,1721288101340,-1185.83,0.00027397,2]
[332531958,1721288101349,-634.32,0.00027397,2]
[332531959,1721288101359,-714.68,0.00027397,2]
[332531960,1721288101369,-706.1,0.00027397,2]
[332531961,1721288101380,-992.23,0.00027397,2]
[332531962,1721288101390,-719.06,0.00027397,2]
[332531963,1721288101400,-879.71,0.00027397,2]
[332531964,1721288101411,-962.74,0.00027397,2]
[332531965,1721288101421,-4194.17,0.00027397,2]
[332531966,1721288101431,-376.79119235,0.00027397,2]
[332531967,1721288101441,-312.36862019,0.00027397,2]
[332531968,1721288101451,-796.16,0.00027397,2]
[332531969,1721288101461,-150.0,0.00027397,2]
[332531970,1721288101471,-150.0,0.00027397,2]
[332531971,1721288101482,-150.0,0.00027397,2]
[332531972,1721288101492,-150.0,0.00027397,2]
[332531973,1721288101502,-150.0,0.00027397,2]
[332531974,1721288101511,-150.0,0.00027397,2]
[332531975,1721288101521,-845.59,0.00027397,2]
[332531976,1721288101531,-150.0,0.00027397,2]
[332531977,1721288101541,-1343.67,0.00027397,2]
[332531978,1721288101551,-150.0,0.00027397,2]